Cogmind - Beta 15 @@@ ROGUE MODE // 2025.05.08 @ 22:25:10 Player: Solanix Result: Core destroyed Performance ------------- Evolutions (1) 500 Regions Visited (4) 800 Robots Destroyed (31) 155 Value Destroyed (605) 605 Prototype IDs (6) 120 Alien Tech Used (0) 0 Bonus (24) 24 TOTAL SCORE: 2204 Bonus ------- High Alert Combat Kills 24 Cogmind --------- Core Integrity 0/400 Matter 206/300 Energy 100/100 System Corruption 6% Temperature Cool (0) Movement Core (50) Location -9/Storage Parts ------- > --- POWER (1) -------- (None) > --- PROPULSION (3) --- Improved Aluminum Leg > --- UTILITY (3) ------ Visual Processing Unit Targeting Computer > --- WEAPON (2) ------- (None) > --- INVENTORY (5) ---- Ion Engine Light Ion Engine Datajack Peak State ------------ > --- POWER ------------ Light Ion Engine > --- PROPULSION ------- Light Treads Wheel > --- UTILITY ---------- Improved Terrain Scanner Seismic Detector > --- WEAPON ----------- Small Laser Light Assault Rifle > --- INVENTORY -------- Ion Engine Ion Engine Light Treads Small Storage Unit EM Pulse Gun [Rating: 9] Favorites ----------- Power Light Ion Engine Engine Light Ion Engine Propulsion Light Treads Treads Light Treads Leg Aluminum Leg Wheel Wheel Utility Visual Processing Unit Device Sensor Array Processor Visual Processing Unit Weapon Light Assault Rifle Energy Gun Small Laser Ballistic Gun Light Assault Rifle Launcher Grenade Launcher Special Weapon Mining Laser Build | -11 -10 -10 -9 -9 ------- Run | Yrd Mat Min Mat Sto Slots Evolved 2 | . . . 2 . Power . | . . . . . Propulsion 1 | . . . 1 . Utility 1 | . . . 1 . Weapon . | . . . . . Parts Attached 22 | 7 7 1 . 7 Power 4 | 1 3 . . . Engine 4 | 1 3 . . . Core . | . . . . . Reactor . | . . . . . Propulsion 6 | 2 1 . . 3 Treads 2 | 1 1 . . . Leg 2 | . . . . 2 Wheel 2 | 1 . . . 1 Hover . | . . . . . Flight . | . . . . . Utility 5 | 2 2 . . 1 Device 3 | 2 1 . . . Storage . | . . . . . Processor 2 | . 1 . . 1 Hackware . | . . . . . Protection . | . . . . . Artifact . | . . . . . Weapon 7 | 2 1 1 . 3 Energy Gun 4 | 1 1 1 . 1 Energy Cannon . | . . . . . Ballistic Gun 1 | 1 . . . . Ballistic Cannon . | . . . . . Launcher 1 | . . . . 1 Special Weapon 1 | . . . . 1 Impact Weapon . | . . . . . Slashing Weapon . | . . . . . Piercing Weapon . | . . . . . Special Melee Weapon . | . . . . . Unidentified Prototypes 1 | . . . . 1 Parts Lost 13 | . 2 4 . 7 Power . | . . . . . Propulsion 5 | . 1 2 . 2 Utility 2 | . 1 . . 1 Weapon 6 | . . 2 . 4 Highest Loss Streak 4 | . 2 4 . 3 To Critical Strikes . | . . . . . Average Backups 4 | 3 4 4 5 4 Power 1 | 1 1 1 2 2 Propulsion . | . . . . . Utility . | . . . . . Weapon 1 | . 2 2 2 1 Tool/Special . | . . . . . Unused Backups 5 | . 3 . . 2 Power 2 | . 1 . . 1 Propulsion . | . . . . . Utility 1 | . 1 . . . Weapon 1 | . 1 . . . Tool/Special 1 | . . . . 1 Average Slot Usage (%) 69 | . 95 62 33 39 Engine 7 | . 14 6 . . Treads 9 | . 17 8 . . Wheel 4 | . 9 . . . Device 11 | . 13 14 11 6 Processor 14 | . 11 14 11 20 Energy Gun 10 | . 14 14 11 2 Ballistic Gun 7 | . 14 4 . . Special Weapon 1 | . . . . 5 Peak Build Rating 9 | 9 9 8 4 8 Average Rating 6 | 4 7 5 4 4 On Entrance 5 | . 9 8 4 4 Naked Turns . | . . . . . Heaviest Build 7 | 7 7 7 3 5 Greatest Support 40 | 10 40 40 3 10 Greatest Overweight (x) 1 | . . 1 . 1 Average Overweight (x) . | . . . . . Largest Inventory Capacity 5 | 5 5 5 5 5 Average Capacity 5 | 5 5 5 5 5 Most Carried 5 | 5 5 5 5 5 Average Carried 4 | 4 4 4 5 4 Final Capacity 5 | 5 5 5 5 5 Final Carried 5 | 5 5 5 5 3 Class Distribution -------------------- 100% | Mutant Dominant Class ---------------- Mutant | -10/Materials Mutant | -10/Mines Mutant | -9/Materials Mutant | -9/Storage Resources | -11 -10 -10 -9 -9 ----------- Run | Yrd Mat Min Mat Sto Matter Collected 575 | 270 87 . . 218 Remotely . | . . . . . Salvage Created 863 | 106 347 . . 410 Parts 64 | 10 28 . . 26 Haulers Intercepted 2 | . 1 . . 1 Recyclers Shooed 5 | 1 . . . 4 Parts Field Recycled . | . . . . . Retrieved Matter . | . . . . . Parts Self-Destructed . | . . . . . Prevented . | . . . . . Kills | -11 -10 -10 -9 -9 ------- Run | Yrd Mat Min Mat Sto Combat Hostiles Destroyed 17 | . 9 1 . 7 Guns 11 | . 9 1 . 1 AOE 6 | . . . . 6 Classes Destroyed 9 | 2 4 1 . 2 Worker 2 | . . . . 2 Tunneler 3 | 3 . . . . Hauler 2 | . 1 . . 1 Recycler 3 | 1 . . . 2 Mechanic 1 | . . . . 1 Watcher 3 | . 3 . . . Swarmer 6 | . 6 . . . Grunt 10 | . 3 . . 7 Demolisher 1 | . . 1 . . Best Kill Streak 6 | 3 4 1 . 6 Combat Bots Only 4 | . 3 1 . 4 Max Kills in Single Turn 2 | 1 2 1 . 2 Gunslinging 1 | . 1 . . . Exploded 1 | . . . . 1 Melee . | . . . . . Uniques/NPCs Destroyed . | . . . . . Combat | -11 -10 -10 -9 -9 -------- Run | Yrd Mat Min Mat Sto Hostile Shots Fired 129 | . 60 11 . 58 Missed 43 | . 24 . . 19 Hits 86 | . 36 11 . 39 Projectile 86 | . 36 11 . 39 AOE 11 | . . 11 . . Critical Strikes 3 | . . . . 3 Damage Taken 1579 | . 420 447 . 712 Core 611 | . 82 127 . 402 Absorbed by Shields . | . . . . . Core Remaining (%) 58 | 100 . 16 . . Volleys Fired 104 | 16 47 6 . 35 Largest 2 | 1 2 1 . 2 Hottest 100 | 40 60 40 . 100 Shots Fired 156 | 16 94 6 . 40 Gun 126 | 16 94 6 . 10 Cannon . | . . . . . Launcher 24 | . . . . 24 Special 6 | . . . . 6 Kinetic 49 | . 47 2 . . Thermal 74 | 16 47 . . 11 Explosive 24 | . . . . 24 Electromagnetic 9 | . . 4 . 5 Robot Hit Streak 18 | 6 9 4 . 18 Robot Miss Streak 4 | 2 3 2 . 4 Penetration Max . | . . . . . Secondary Targets 2 | . 2 . . . Max Gunslinging Chain 1 | . 1 . . . Shots Hit Robots 107 | 13 62 4 . 28 Core Hits 63 | 5 24 2 . 32 Critical Kills . | . . . . . Critical Parts Destroyed . | . . . . . Critical Strikes 1 | . . . . 1 Corrupt 1 | . . . . 1 Melee Attacks . | . . . . . Impact . | . . . . . Slashing . | . . . . . Piercing . | . . . . . Sneak Attacks . | . . . . . Combat Hostiles . | . . . . . Follow-up Attacks . | . . . . . Damage Inflicted 1914 | 144 593 58 . 1119 Guns 935 | 144 593 58 . 140 Cannons . | . . . . . Explosions 962 | . . . . 962 Melee . | . . . . . Ramming 17 | . . . . 17 Kinetic 265 | . 252 13 . . Thermal 572 | 144 341 . . 87 Explosive 962 | . . . . 962 Electromagnetic 98 | . . 45 . 53 Impact . | . . . . . Slashing . | . . . . . Piercing . | . . . . . Highest Corruption 6 | . . . . 6 Average Corruption 6 | . . . . 6 Corruption Purged . | . . . . . Corruption Blocked . | . . . . . Effects 3 | . . . . 3 Heat Flow Errors 1 | . . . . 1 Energy Discharges 1 | . . . . 1 Parts Fused 1 | . . . . 1 Overload Shots . | . . . . . Overflow Damage 6 | . . . . 6 Projectiles . | . . . . . Explosions 4 | . . . . 4 Melee 2 | . . . . 2 Knockbacks . | . . . . . Impact . | . . . . . Kinetic . | . . . . . Secondary . | . . . . . Self-Inflicted Damage 65 | . . . . 65 Shots 5 | . . . . 5 Rammed 1 | . . . . 1 Targets Rammed 1 | . . . . 1 Kicked . | . . . . . Crushed . | . . . . . Highest Temperature 206 | 15 206 . . 162 Average Temperature 60 | 10 63 . . 48 Received Heat Transfer 387 | . 156 . . 231 Siege Activations . | . . . . . Martial Activations . | . . . . . Shielding Activations . | . . . . . Robots Disrupted . | . . . . . Combat Hostiles . | . . . . . Robots Corrupted . | . . . . . Combat Hostiles . | . . . . . Parts Fried . | . . . . . Impact Corruptions 1 | . . . . 1 Robots Melted . | . . . . . Combat Hostiles . | . . . . . Parts Melted . | . . . . . Heat Transferred 1285 | 325 775 . . 185 Parts Sabotaged . | . . . . . Parts Stolen . | . . . . . Parts Stripped . | . . . . . Power Chain Reactions . | . . . . . Alert | -11 -10 -10 -9 -9 ------- Run | Yrd Mat Min Mat Sto Maximum Alert Level 2 | . . . . 2 Low Security (%) 83 | 100 100 100 100 43 Level 1 6 | . . . . 24 Level 2 9 | . . . . 32 Level 3 . | . . . . . Level 4 . | . . . . . Level 5 . | . . . . . High Security . | . . . . . Max Security . | . . . . . Peak Influence 453 | 10 124 32 . 453 Initial 32 | . . 32 . . Average 87 | 2 57 6 . 212 Influence Increases 1034 | 20 349 20 . 645 Destroy 0b10 Robot/C 340 | . 180 20 . 140 Destroy 0b10 Robot/NC 70 | 20 20 . . 30 Destroy Leader 80 | . 48 . . 32 Successful Hack 22 | . 11 . . 11 Disable Machine 30 | . . . . 30 Anti-Garrison Action 200 | . . . . 200 Destroy Structure 97 | . . . . 97 Partial Spotted 30 | . . . . 30 Lose Combat Pursuer 165 | . 90 . . 75 Influence Decreases 611 | 20 265 104 . 222 Entered New Map 52 | . . 52 . . Time Decay 457 | 20 245 50 . 142 Lost Part 92 | . 20 2 . 70 Lost Ally 10 | . . . . 10 Squads Dispatched 4 | . 2 . . 2 Investigation 3 | . 1 . . 2 Extermination . | . . . . . Reinforcement 1 | . 1 . . . Assault . | . . . . . Garrison . | . . . . . Intercept . | . . . . . Searches Triggered . | . . . . . Construction Impeded . | . . . . . Haulers Reinforced . | . . . . . Active Scanning Responses . | . . . . . Cargo Convoy Interrupts . | . . . . . Stealth | -11 -10 -10 -9 -9 --------- Run | Yrd Mat Min Mat Sto Distress Signals 4 | . 1 . . 3 Communications Jammed . | . . . . . Distress Signals . | . . . . . Times Spotted 39 | . 19 2 2 16 Peak Tracking Total 6 | . 5 2 3 6 Tactical Retreats 8 | . 3 . . 5 Traps | -11 -10 -10 -9 -9 ------- Run | Yrd Mat Min Mat Sto Traps Triggered 1 | . 1 . . . Indirectly . | . . . . . Trap Hack Attempts . | . . . . . Triggered . | . . . . . Disarmed . | . . . . . Reprogrammed . | . . . . . Reused . | . . . . . Traps Extracted . | . . . . . Installed . | . . . . . Triggered . | . . . . . Machines | -11 -10 -10 -9 -9 ---------- Run | Yrd Mat Min Mat Sto Machines Disabled 2 | . . . . 2 Max in Single Turn 1 | . . . . 1 Garrison Access 1 | . . . . 1 Machines Repaired . | . . . . . Machines Dismantled . | . . . . . Machines Sabotaged . | . . . . . Overloaded Fab Kills . | . . . . . Hacking | -11 -10 -10 -9 -9 --------- Run | Yrd Mat Min Mat Sto Machines Accessed 11 | . 7 . . 4 Terminals 8 | . 5 . . 3 Fabricators . | . . . . . Repair Stations 1 | . 1 . . . Recycling Units 1 | . 1 . . . Scanalyzers . | . . . . . Garrison Access 1 | . . . . 1 Total Hacks 25 | . 18 . . 7 Successful 12 | . 8 . . 4 Failed 13 | . 10 . . 3 Catastrophic 1 | . 1 . . . Database Lockouts . | . . . . . Manual 7 | . 5 . . 2 Terminals 19 | . 13 . . 6 Fabricators . | . . . . . Repair Stations 2 | . 2 . . . Recycling Units 3 | . 3 . . . Scanalyzers . | . . . . . Garrison Access 1 | . . . . 1 Terminal Hacks 8 | . 6 . . 2 Robot Analysis 1 | . 1 . . . Prototype ID Bank 3 | . 2 . . 1 Locate Traps 2 | . 2 . . . Zone Layout 2 | . 1 . . 1 Fabricator Hacks . | . . . . . Repair Station Hacks 1 | . 1 . . . Scan Component 1 | . 1 . . . Recycling Unit Hacks . | . . . . . Scanalyzer . | . . . . . Garrison Access Hacks . | . . . . . Unauthorized Hacks 3 | . 1 . . 2 Terminals 1 | . . . . 1 Assimilate 1 | . . . . 1 Fabricators . | . . . . . Repair Stations . | . . . . . Recycling Units 1 | . 1 . . . Monitor 1 | . 1 . . . Scanalyzers . | . . . . . Garrison Access 1 | . . . . 1 Jam 1 | . . . . 1 Data Cores Recovered . | . . . . . Used . | . . . . . Hacking Detections 7 | . 5 . . 2 Full Trace Events 1 | . . . . 1 Feedback Events . | . . . . . Feedback Blocked . | . . . . . Robot Schematics Acquired . | . . . . . Robots Built . | . . . . . Authchips . | . . . . . Time . | . . . . . Total Robot Build Rating . | . . . . . Part Schematics Acquired . | . . . . . Parts Built . | . . . . . Authchips . | . . . . . Time . | . . . . . Total Part Build Rating . | . . . . . Parts Repaired . | . . . . . Time . | . . . . . Parts Recycled . | . . . . . Recycled Matter . | . . . . . Retrieved Matter . | . . . . . Retrieved Components . | . . . . . Parts Scanalyzed . | . . . . . Part Schematics Acquired . | . . . . . Parts Damaged . | . . . . . Bothacking | -11 -10 -10 -9 -9 ------------ Run | Yrd Mat Min Mat Sto Used RIF Installer . | . . . . . Robots Hacked . | . . . . . Non-combat . | . . . . . Combat . | . . . . . Robot Hacks Applied . | . . . . . Relay Couplers Released . | . . . . . Fabnet Peak Effective % . | . . . . . Robots Rewired . | . . . . . Allies Hacked . | . . . . . Hacks Repelled . | . . . . . Allies | -11 -10 -10 -9 -9 -------- Run | Yrd Mat Min Mat Sto Total Allies 1 | . . . . 1 Largest Group 1 | . . . . 1 Highest-Rated Group 10 | . . . . 10 Highest-Rated Ally 10 | . . . . 10 Total Orders . | . . . . . Ally Attacks . | . . . . . Total Damage . | . . . . . Kills . | . . . . . Allies Corrupted . | . . . . . Allies Melted . | . . . . . Intel | -11 -10 -10 -9 -9 ------- Run | Yrd Mat Min Mat Sto Active Infowar (turns) 1266 | 7 593 234 49 383 Optics 1152 | . 486 234 49 383 Sensors 571 | . 53 234 49 235 Terrain 112 | 7 105 . . . Seismic 403 | 4 399 . . . Robot Analysis Total 1 | . 1 . . . Derelict Logs Recovered . | . . . . . Drone Launches . | . . . . . Drone Recoveries . | . . . . . Exploration | -11 -10 -10 -9 -9 ------------- Run | Yrd Mat Min Mat Sto Turns Passed 1341 | 82 593 234 49 383 Spaces Moved 1416 | 48 430 336 98 504 Core 895 | 20 . 295 98 482 Treads 133 | . 92 41 . . Legs 21 | . . . . 21 Wheels 367 | 28 338 . . 1 Hover . | . . . . . Flight . | . . . . . Fastest Speed 50 | 50 80 50 50 50 Average Speed 70 | 67 97 65 50 54 Slowest Speed 160 | 80 160 160 50 120 Overloaded Moves . | . . . . . Propulsion Burnouts . | . . . . . Robots Hopped . | . . . . . Potential Cave-ins 3 | . . . . 3 Cave-ins Triggered 1 | . . . . 1 Exploration Rate (%) 39 | 4 82 53 6 50 Regions Visited 4 Branch Regions 2 Pre-discovered Areas . | . . . . . Known Exits Taken . | . . . . . Unknown Exits Taken 4 | 1 1 1 1 . Scrap Searched . | . . . . . Spaces Dug . | . . . . . Terrain Destroyed 128 | . . . . 128 Melee . | . . . . . Projectile 2 | . . . . 2 AOE 126 | . . . . 126 Terrain Rammed . | . . . . . Walls Destroyed . | . . . . . Machines Disabled . | . . . . . Actions | -11 -10 -10 -9 -9 --------- Run | Yrd Mat Min Mat Sto Total 1598 | 79 523 343 97 556 Wait 29 | . 26 . . 3 Move 1412 | 47 429 335 97 504 Hop . | . . . . . Pick Up 19 | 9 6 . . 4 Fast Attach 9 | 3 4 . . 2 Attach 14 | 4 3 1 . 6 Detach 1 | . . 1 . . Swap 1 | . . . . 1 Drop 9 | . 8 . . 1 Fire 104 | 16 47 6 . 35 Melee . | . . . . . Ram . | . . . . . Kick . | . . . . . Crush . | . . . . . Escape Stasis . | . . . . . Rewire . | . . . . . Trap . | . . . . . Miscellaneous . | . . . . . Route ------- -11/Scrapyard -10/Materials (discovered 5 exits: [*Mat x3] / [*Min x2]) -10/Mines (discovered 3 exits: [*Mat x2] / [*Sub]) -9/Materials -9/Storage History --------- Turn | Location | Event 10 | -11/Scrapyard | Discovered new exit (range 15) 83 | -11/Scrapyard | Entered Materials 115 | -10/Materials | Discovered new exit (range 16) 227 | -10/Materials | Discovered new exit (range 6) 304 | -10/Materials | Build established: Mutant 324 | -10/Materials | Discovered new exit (range 8) 436 | -10/Materials | Discovered new exit (range 8) 588 | -10/Materials | Discovered new exit (range 6) 676 | -10/Materials | Entered Mines 693 | -10/Mines | Assembled infested the area 744 | -10/Mines | Core integrity fell below 50% 750 | -10/Mines | Core integrity fell below 20% 757 | -10/Mines | Discovered new exit (range 10) 778 | -10/Mines | Lost 4 parts (2n2w) 784 | -10/Mines | Discovered new exit (range 10) 896 | -10/Mines | Discovered new exit (range 6) 910 | -10/Mines | Entered Materials 910 | -9/Materials | Evolved 2 slots: Propulsion x1, Utility x1 914 | -9/Materials | Discovered new exit (range 6) 959 | -9/Materials | Entered Storage 1194 | -9/Storage | Crushed by falling debris 1296 | -9/Storage | Core integrity fell below 50% 1316 | -9/Storage | Core integrity fell below 20% 1339 | -9/Storage | Lost 3 parts (1n2w) 1342 | -9/Storage | Core destroyed Last Messages --------------- recycling unit. 01293_ R-06 Scavenger inserts Aluminum Leg into recycling unit. 01299_ Aluminum Leg destroyed. 01299_ Critical hit (Burn: +37). 01301_ R-06 Scavenger collects Sml. Laser. 01304_ EM Pulse Gun destroyed. 01304_ Terminal disabled. 01305_ R-06 Scavenger collects Ion Engine. 01308_ Imp. Medium Laser destroyed. 01313_ Critical hit (Burn: +37). 01319_ K-01 Serf collects debris. 01325_ Acquired Imp. Aluminum Leg. 01326_ System corrupted: Heat flow error (+190). 01341_ Recycling unit begins recycling process. 01341_ K-01 Serf collects debris. 01342_ Slammed into K-01 Serf. 01342_ Destroyed Sml. Matter Pod. 01342_ K-01 Serf system corrupted by crushing effect. Map ----- +----------------------------------------------------+ | ???????# """ ??????????#^^^#??????# #????? | | ???????# """ ??????????#^^^#??????# #????? | | ?????"?# """ ?????????## ########+###??? | | ?????" # =%*# #######??# ## #??? | | ?????" + [ # ## # #### #### | | ???????# [ # # # ## "" # | | ???????# * * " # G"# | | ???????# * ! "T ! """"" "" # | | ???????# """"" #### | | ???????#### ## #* ### # """"" #### | | ??????????##??# # # # ## * # ## | | ??????????????# ######## ! # ########## | | ????############ ##???#### # ###???????# | | ????# #?# ####????#""" ##????????## | | ????# """" #?# #???#####"Y"# ####??????# | | ????# "![" #?# #???# = # " "######## | | ????# "] " ### #???# k %! | | ????# "[]" + #???# [ #####+ | | ????# "]!" ### #???# + # | | ????# """ #?# #???# """ """ # """ " | | ????# #?# #??## """ """ ### """ # | | ????# #?# #??# """ """ #?# """ # | | ????#####+###### #??## ### # | | ##?????# #???####/######"" # | | #?????# "######??????#k#????#"T """ ###### | | #?????# ##???????????#@#????#"" "R ###### | | #?????# #????????????# #????### """ # ] | | #?????# #????????????# ######## # | | #?????# # ########???# + """ | | #?????# # #???# ########+## # """ | | #?????# # #???# #??# !! # # """ | | #?????# # """ #???# #??# + + | | ######## # """ #???# #??# # ##+#####? | | # """ ##### #### !# # ? | | + ! """ + + ! + # """"" ? | | # """ ############# ### """"" ? | | ############ #???????????########?# """"" ? | | ???????????# #????????????????????# ? | | ???????????##########????????????????????########? | | | | | | | | | | | | | | | | | | | | | | | +----------------------------------------------------+ Best States ------------- Heat Dissipation 28 Energy Generation 10 Energy Capacity 125 Matter Stores 300 Matter Capacity 300 Sight Range 18 Robot Scan Range 14 Terrain Scan Range 16 Terrain Scan Density 10 Evasion (%) 55 Targeting Accuracy 5 Recoil Reduction 2 Item Schematics ----------------- None Robot Schematics ------------------ None Fabricated ------------ Nothing Repaired ---------- Nothing Alien Tech Used ----------------- None Achievements -------------- Unlikely Earthworm Challenges ------------ None Game ------ Seed MachineGyrokineticConstruct Manual? 0 Play Time 00:43:10 Cumulative 38.6 hours Start 2025.05.08 @ 21:43:21 End 2025.05.08 @ 22:25:10 Sessions 1 Manual Loads 0 Difficulty Rogue Special Mode None Game No. 25 Rogue 25 Adventurer 0 Explorer 0 Win Type - Total 1 Types 1/0/0/0/0/0/0/0/0/0 Lore% 19 Gallery% 25 Achievement% 32 Wizard Run 0 Options --------- Layout 1 ASCII 0 Keyboard 0 Movement Mouse Keybinds 0 Fullscreen 1 Font 24/Smallcaps Map View 50x35 Zoom Use 0% Tactical HUD 1 Map Filters NONE Filters NONE Steam 1 RUN: f0ebc403-207f-4494-949d-b4823a51adb1